Cogmind - Beta 16 *** ADVENTURER MODE // 2026.01.03 @ 15:28:27 Player: Brooke isn't good at these Result: Self-destructed Performance ------------- Evolutions (5) 2500 Regions Visited (4) 800 Robots Destroyed (24) 120 Value Destroyed (848) 848 Prototype IDs (1) 20 Alien Tech Used (0) 0 Bonus (0) 0 TOTAL SCORE: 4288 Bonus ------- None Cogmind --------- Core Integrity 177/1000 Matter 500/500 Energy 310/310 System Corruption 20% Temperature Warm (175) Movement Core (500) Ox9 Location -5/Factory Parts ------- > --- POWER (3) -------- Reinforced Fission Core > --- PROPULSION (4) --- (None) > --- UTILITY (6) ------ Small Storage Unit High-capacity Matter Pod Terrain Scan Processor Authchip [Armor] > --- WEAPON (4) ------- (None) > --- INVENTORY (8) ---- (None) Peak State ------------ > --- POWER ------------ Light Ion Engine Reinforced Fission Core Fusion Reactor > --- PROPULSION ------- Improved Treads Medium Treads Aluminum Leg > --- UTILITY ---------- Improved Heat Sink Small Storage Unit High-capacity Matter Pod Terrain Scan Processor Light Armor Plating Authchip [Armor] > --- WEAPON ----------- Heavy Laser Light Assault Rifle Subdweller Machine Gun > --- INVENTORY -------- Long-range Tractor Beam [Rating: 40] Favorites ----------- Power Light Ion Engine Engine Light Ion Engine Power Core Reinforced Fission Core Reactor Fusion Reactor Propulsion Aluminum Leg Treads Medium Treads Leg Aluminum Leg Wheel Wheel Utility Small Storage Unit Device Improved Heat Sink Storage Small Storage Unit Processor Terrain Scan Processor Hackware Authchip [Armor] Protection Light Armor Plating Weapon Light Assault Rifle Energy Gun Arc Projector Ballistic Gun Light Assault Rifle Special Weapon Flamer Build | -11 -10 -10 -7 -5 ------- Run | Yrd Mat Sub Rec Fac Slots Evolved 10 | . . . . 10 Power 2 | . . . . 2 Propulsion 2 | . . . . 2 Utility 4 | . . . . 4 Weapon 2 | . . . . 2 Parts Attached 36 | 6 4 11 . 15 Power 7 | 1 1 2 . 3 Engine 5 | 1 1 2 . 1 Core 1 | . . . . 1 Reactor 1 | . . . . 1 Propulsion 8 | 2 . 3 . 3 Treads 2 | . . . . 2 Leg 5 | 2 . 2 . 1 Wheel 1 | . . 1 . . Hover . | . . . . . Flight . | . . . . . Utility 7 | 1 1 . . 5 Device 2 | . . . . 2 Storage 2 | 1 1 . . . Processor 1 | . . . . 1 Hackware 1 | . . . . 1 Protection 1 | . . . . 1 Artifact . | . . . . . Weapon 14 | 2 2 6 . 4 Energy Gun 8 | 2 . 2 . 4 Energy Cannon . | . . . . . Ballistic Gun 5 | . 2 3 . . Ballistic Cannon . | . . . . . Launcher . | . . . . . Special Weapon 1 | . . 1 . . Impact Weapon . | . . . . . Slashing Weapon . | . . . . . Piercing Weapon . | . . . . . Special Melee Weapon . | . . . . . Unidentified Prototypes 1 | . . . . 1 Parts Lost 17 | . . 1 . 16 Power 2 | . . . . 2 Propulsion 6 | . . 1 . 5 Utility 3 | . . . . 3 Weapon 6 | . . . . 6 Highest Loss Streak 7 | . . 1 . 7 To Critical Strikes . | . . . . . Average Backups 4 | 2 6 7 7 1 Power . | . 1 . 1 . Propulsion 1 | 1 2 2 1 . Utility 1 | . 1 3 3 . Weapon . | . 1 . 1 . Tool/Special . | . . . . . Unused Backups 3 | . 2 . 1 . Power . | . . . . . Propulsion 2 | . 2 . . . Utility . | . . . . . Weapon 1 | . . . 1 . Tool/Special . | . . . . . Average Slot Usage (%) 91 | . 99 96 100 78 Engine 11 | . 14 14 14 6 Leg 20 | . 28 24 28 9 Device 1 | . . . . 4 Storage 22 | . 27 28 28 11 Processor 1 | . . . . 4 Hackware 1 | . . . . 4 Protection 1 | . . . . 3 Energy Gun 9 | . 10 10 . 8 Ballistic Gun 13 | . 16 12 28 9 Special Weapon 1 | . . 3 . . Peak Build Rating 40 | 6 8 11 11 40 Average Rating 16 | 4 7 9 10 32 On Entrance 7 | . 6 8 10 11 Avg Prop Armor Cover (%) 5 | . . 9 . 4 Naked Turns . | . . . . . Heaviest Build 58 | 12 16 19 19 58 Greatest Support 51 | 20 20 20 20 51 Greatest Overweight (x) 11 | . . 1 . 11 Average Overweight (x) . | . . . . 1 Largest Inventory Capacity 8 | 8 8 8 8 8 Average Capacity 7 | 6 8 8 8 8 Most Carried 8 | 4 8 8 8 7 Average Carried 4 | 2 6 7 7 . Final Capacity 8 | 8 8 8 8 8 Final Carried 8 | 4 8 6 8 . Class Distribution -------------------- 59% | Mutant 22% | Scavenger-Tank 18% | Scavenger-Mutant Dominant Class ---------------- Mutant | -10/Materials Mutant | -10/Subcaves Scavenger-Mutant | -7/Recycling Scavenger-Tank | -5/Factory Resources | -11 -10 -10 -7 -5 ----------- Run | Yrd Mat Sub Rec Fac Matter Collected 927 | 217 146 349 . 215 Remotely 33 | . . . . 33 Salvage Created 879 | . 134 330 . 415 Parts 60 | . 10 30 . 20 Haulers Intercepted . | . . . . . Recyclers Shooed 3 | . 1 . . 2 Parts Field Recycled . | . . . . . Retrieved Matter . | . . . . . Parts Self-Destructed 12 | . . 12 . . Prevented . | . . . . . Parts Restored . | . . . . . Kills | -11 -10 -10 -7 -5 ------- Run | Yrd Mat Sub Rec Fac Combat Hostiles Destroyed 21 | . 3 11 . 7 Guns 18 | . 3 8 . 7 Cannons 1 | . . 1 . . AOE 2 | . . 2 . . Classes Destroyed 8 | . 2 3 . 3 Turret 2 | . . 2 . . Watcher 1 | . 1 . . . Swarmer 7 | . . 6 . 1 Grunt 4 | . 3 . . 1 Brawler 1 | . . . . 1 Duelist 1 | . . . . 1 Programmer 3 | . . . . 3 Subdweller 5 | . . 5 . . Best Kill Streak 3 | . 2 3 . 2 Combat Bots Only 3 | . 1 3 . 2 Max Kills in Single Turn 2 | . 1 2 . 1 Gunslinging 1 | . . 1 . . Exploded 2 | . . 2 . . Melee . | . . . . . Uniques/NPCs Destroyed . | . . . . . Combat | -11 -10 -10 -7 -5 -------- Run | Yrd Mat Sub Rec Fac Hostile Shots Fired 339 | . 14 170 . 155 Missed 124 | . 3 71 . 50 Hits 215 | . 11 99 . 105 Melee 3 | . . . . 3 Projectile 212 | . 11 99 . 102 AOE 1 | . . . . 1 Critical Strikes 10 | . 1 . . 9 Part Disruptions 1 | . . . . 1 Damage Taken 2890 | . 117 705 . 2068 Core 952 | . . 129 . 823 Absorbed by Shields . | . . . . . Ignored by Resistances 719 | . 36 228 . 455 Core Remaining (%) 74 | 100 . . 48 . Volleys Fired 100 | . 13 43 . 44 Largest 4 | . 2 2 . 4 Hottest 174 | . 90 120 . 174 Shots Fired 204 | . 26 70 . 108 Gun 199 | . 26 65 . 108 Cannon . | . . . . . Launcher . | . . . . . Special 5 | . . 5 . . Kinetic 116 | . 16 45 . 55 Thermal 56 | . 5 17 . 34 Explosive . | . . . . . Electromagnetic 32 | . 5 8 . 19 Robot Hit Streak 34 | . 11 21 . 34 Robot Miss Streak 3 | . 1 3 . 2 Penetration Max . | . . . . . Secondary Targets 3 | . . 2 . 1 Max Gunslinging Chain 1 | . . 1 . 1 Shots Hit Robots 167 | . 22 54 . 91 Core Hits 59 | . 7 22 . 30 Critical Kills 1 | . . 1 . . Critical Parts Destroyed . | . . . . . Critical Strikes 3 | . 1 1 . 1 Burn 2 | . 1 . . 1 Destroy 1 | . . 1 . . Melee Attacks . | . . . . . Impact . | . . . . . Slashing . | . . . . . Piercing . | . . . . . Sneak Attacks . | . . . . . Combat Hostiles . | . . . . . Follow-up Attacks . | . . . . . Damage Inflicted 2184 | . 261 626 . 1297 Guns 2057 | . 257 506 . 1294 Cannons . | . . . . . Explosions 71 | . . 71 . . Melee . | . . . . . Ramming 12 | . 4 5 . 3 Kinetic 1068 | . 159 316 . 593 Thermal 940 | . 49 254 . 637 Explosive . | . . . . . Electromagnetic 164 | . 49 51 . 64 Impact . | . . . . . Slashing . | . . . . . Piercing . | . . . . . Highest Corruption 20 | . . . . 20 Average Corruption 8 | . . . . 8 Corruption Purged . | . . . . . Corruption Blocked . | . . . . . Effects 18 | . . . . 18 Message Errors 2 | . . . . 2 Matter Fused 5 | . . . . 5 Heat Flow Errors 2 | . . . . 2 Energy Discharges 3 | . . . . 3 Data Loss (minor) 1 | . . . . 1 Data Loss (major) 1 | . . . . 1 Alerts 1 | . . . . 1 Misdirections 1 | . . . . 1 Weapon Failures 2 | . . . . 2 Overload Shots . | . . . . . Overflow Damage . | . . . . . Projectiles . | . . . . . Explosions . | . . . . . Melee . | . . . . . Knockbacks . | . . . . . Impact . | . . . . . Kinetic . | . . . . . Secondary . | . . . . . Self-Inflicted Damage 50 | . . 50 . . Shots 1 | . . 1 . . Rammed 6 | . . . . 6 Targets Rammed 9 | . 2 1 . 6 Kicked 3 | . 2 1 . . Crushed . | . . . . . Highest Temperature 699 | . 144 38 . 699 Average Temperature 161 | . 46 16 . 199 Received Heat Transfer 651 | . 93 474 . 84 Effects 14 | . . . . 14 Shutdowns 5 | . . . . 5 Energy Bleed 3 | . . . . 3 Damage (minor) 3 | . . . . 3 Damage (core) 3 | . . . . 3 Siege Activations . | . . . . . Martial Activations . | . . . . . Shielding Activations . | . . . . . Robots Disrupted 1 | . . . . 1 Combat Hostiles 1 | . . . . 1 Robots Corrupted . | . . . . . Combat Hostiles . | . . . . . Parts Fried . | . . . . . Impact Corruptions . | . . . . . Robots Melted . | . . . . . Combat Hostiles . | . . . . . Parts Melted 3 | . . . . 3 Heat Transferred 2025 | . 222 656 . 1147 Parts Sabotaged . | . . . . . Parts Stolen . | . . . . . Parts Stripped . | . . . . . Power Chain Reactions 1 | . . 1 . . Alert | -11 -10 -10 -7 -5 ------- Run | Yrd Mat Sub Rec Fac Maximum Alert Level . | . . . . . Low Security (%) 100 | 100 100 . 100 100 Level 1 . | . . . . . Level 2 . | . . . . . Level 3 . | . . . . . Level 4 . | . . . . . Level 5 . | . . . . . High Security . | . . . . . Max Security . | . . . . . Peak Influence 55 | . 45 . 49 55 Initial 49 | . . . 49 . Average 7 | . 6 . 17 6 Influence Increases 633 | . 92 320 . 221 Destroy 0b10 Robot/C 360 | . 60 160 . 140 Destroy 0b10 Robot/NC 5 | . 5 . . . Destroy Leader 42 | . 12 10 . 20 Successful Hack 16 | . . . . 16 Lose Combat Pursuer 210 | . 15 150 . 45 Influence Decreases 633 | . 92 200 120 221 Entered New Map 71 | . . . 71 . Time Decay 482 | . 92 190 49 151 Lost Part 80 | . . 10 . 70 Squads Dispatched 11 | . . . . 11 Investigation 2 | . . . . 2 Extermination 1 | . . . . 1 Reinforcement 2 | . . . . 2 Assault . | . . . . . Garrison 6 | . . . . 6 Intercept . | . . . . . Searches Triggered . | . . . . . Construction Impeded . | . . . . . Haulers Reinforced 1 | . . . . 1 Active Scanning Responses . | . . . . . Cargo Convoy Interrupts . | . . . . . Stealth | -11 -10 -10 -7 -5 --------- Run | Yrd Mat Sub Rec Fac Distress Signals 2 | . 1 . . 1 Communications Jammed . | . . . . . Distress Signals . | . . . . . Times Spotted 48 | . 5 24 1 18 Peak Tracking Total 6 | . 2 6 1 5 Tactical Retreats 8 | . 1 5 . 2 Traps | -11 -10 -10 -7 -5 ------- Run | Yrd Mat Sub Rec Fac Traps Triggered 1 | . 1 . . . Indirectly . | . . . . . Trap Hack Attempts . | . . . . . Triggered . | . . . . . Disarmed . | . . . . . Reprogrammed . | . . . . . Reused . | . . . . . Traps Extracted . | . . . . . Installed . | . . . . . Triggered . | . . . . . Machines | -11 -10 -10 -7 -5 ---------- Run | Yrd Mat Sub Rec Fac Machines Disabled . | . . . . . Max in Single Turn . | . . . . . Machines Repaired . | . . . . . Machines Dismantled . | . . . . . Machines Sabotaged . | . . . . . Overloaded Fab Kills . | . . . . . Hacking | -11 -10 -10 -7 -5 --------- Run | Yrd Mat Sub Rec Fac Machines Accessed 3 | . 1 . . 2 Terminals 3 | . 1 . . 2 Fabricators . | . . . . . Repair Stations . | . . . . . Recycling Units . | . . . . . Scanalyzers . | . . . . . Garrison Access . | . . . . . Total Hacks 8 | . 1 . . 7 Successful 2 | . 1 . . 1 Failed 6 | . . . . 6 Catastrophic . | . . . . . Database Lockouts . | . . . . . Manual . | . . . . . Terminals 8 | . 1 . . 7 Fabricators . | . . . . . Repair Stations . | . . . . . Recycling Units . | . . . . . Scanalyzers . | . . . . . Garrison Access . | . . . . . Terminal Hacks 2 | . 1 . . 1 Recall Reinforcements 1 | . . . . 1 Zone Layout 1 | . 1 . . . Fabricator Hacks . | . . . . . Repair Station Hacks . | . . . . . Recycling Unit Hacks . | . . . . . Scanalyzer . | . . . . . Garrison Access Hacks . | . . . . . Unauthorized Hacks . | . . . . . Terminals . | . . . . . Fabricators . | . . . . . Repair Stations . | . . . . . Recycling Units . | . . . . . Scanalyzers . | . . . . . Garrison Access . | . . . . . Data Cores Recovered . | . . . . . Used . | . . . . . Hacking Detections 2 | . . . . 2 Full Trace Events 2 | . . . . 2 Feedback Events . | . . . . . Feedback Blocked . | . . . . . Robot Schematics Acquired . | . . . . . Robots Built . | . . . . . Authchips . | . . . . . Time . | . . . . . Total Robot Build Rating . | . . . . . Part Schematics Acquired . | . . . . . Parts Built . | . . . . . Authchips . | . . . . . Time . | . . . . . Total Part Build Rating . | . . . . . Part Studies Acquired . | . . . . . Parts Repaired . | . . . . . Time . | . . . . . Parts Recycled . | . . . . . Recycled Matter . | . . . . . Retrieved Matter . | . . . . . Retrieved Components . | . . . . . Parts Scanalyzed . | . . . . . Part Schematics Acquired . | . . . . . Parts Damaged . | . . . . . Bothacking | -11 -10 -10 -7 -5 ------------ Run | Yrd Mat Sub Rec Fac Used RIF Installer . | . . . . . Robots Hacked . | . . . . . Non-combat . | . . . . . Combat . | . . . . . Robot Hacks Applied . | . . . . . Relay Couplers Released . | . . . . . Fabnet Peak Effective % . | . . . . . Robots Rewired . | . . . . . Allies Hacked . | . . . . . Hacks Repelled . | . . . . . Allies | -11 -10 -10 -7 -5 -------- Run | Yrd Mat Sub Rec Fac Total Allies . | . . . . . Largest Group . | . . . . . Highest-Rated Group . | . . . . . Highest-Rated Ally . | . . . . . Total Orders . | . . . . . Ally Attacks . | . . . . . Total Damage . | . . . . . Kills . | . . . . . Allies Corrupted . | . . . . . Allies Melted . | . . . . . Intel | -11 -10 -10 -7 -5 ------- Run | Yrd Mat Sub Rec Fac Active Infowar (turns) . | . . . . . Robot Analysis Total . | . . . . . Derelict Logs Recovered 1 | . . 1 . . Drone Launches . | . . . . . Drone Recoveries . | . . . . . Exploration | -11 -10 -10 -7 -5 ------------- Run | Yrd Mat Sub Rec Fac Turns Passed 2332 | 64 537 812 159 760 Spaces Moved 1284 | 46 376 485 127 250 Core 11 | 9 . . . 2 Treads 89 | . . . . 89 Legs 1146 | 37 376 447 127 159 Wheels 38 | . . 38 . . Hover . | . . . . . Flight . | . . . . . Fastest Speed 50 | 50 120 95 120 120 Average Speed 139 | 106 120 124 120 211 Slowest Speed 600 | 120 120 190 120 600 Overloaded Moves . | . . . . . Propulsion Burnouts . | . . . . . Robots Hopped . | . . . . . Potential Cave-ins . | . . . . . Cave-ins Triggered . | . . . . . Exploration Rate (%) 21 | 3 43 24 33 5 Regions Visited 4 Branch Regions 2 Pre-discovered Areas 2 | . . 2 . . Known Exits Taken . | . . . . . Unknown Exits Taken 4 | 1 1 1 1 . Scrap Searched 3 | . . 3 . . Spaces Dug . | . . . . . Terrain Destroyed 6 | . . 6 . . Melee . | . . . . . Projectile . | . . . . . AOE 6 | . . 6 . . Terrain Rammed . | . . . . . Walls Destroyed . | . . . . . Machines Disabled . | . . . . . Actions | -11 -10 -10 -7 -5 --------- Run | Yrd Mat Sub Rec Fac Total 1635 | 61 438 624 134 378 Wait 150 | . 27 66 2 55 Move 1280 | 45 375 484 126 250 Hop . | . . . . . Pick Up 38 | 10 10 7 4 7 Fast Attach 4 | . 1 3 . . Attach 27 | 6 2 4 . 15 Detach . | . . . . . Swap 7 | . 2 5 . . Drop 20 | . 6 11 2 1 Fire 100 | . 13 43 . 44 Melee . | . . . . . Ram 4 | . . . . 4 Kick 3 | . 2 1 . . Crush 2 | . . . . 2 Escape Stasis . | . . . . . Rewire . | . . . . . Trap . | . . . . . Miscellaneous . | . . . . . Route ------- -11/Scrapyard -10/Materials (discovered 2 exits: [*Mat] / [*Sub]) -10/Subcaves (discovered 2 exits: [*Mat] / [*Rec]) -7/Recycling -5/Factory History --------- Turn | Location | Event 7 | -11/Scrapyard | Discovered new exit (range 16) 65 | -11/Scrapyard | Entered Materials 250 | -10/Materials | Discovered new exit (range 16) 316 | -10/Materials | Build established: Mutant 566 | -10/Materials | Discovered new exit (range 6) 602 | -10/Materials | Entered Subcaves 650 | -10/Subcaves | Disturbed a concealed Subdweller 721 | -10/Subcaves | Discovered new exit (range 13) 853 | -10/Subcaves | Learned location of Zion (-7) 853 | -10/Subcaves | Met a Zionite searching for "candidates" 854 | -10/Subcaves | A swath of the cavern ceiling suddenly collapsed 1075 | -10/Subcaves | Discovered new exit (range 16) 1218 | -10/Subcaves | Learned location of Storage (-7) 1239 | -10/Subcaves | Shifting Twisted Machinery released Sub. Power Source 1365 | -10/Subcaves | Core integrity fell below 50% 1414 | -10/Subcaves | Entered Recycling 1415 | -7/Recycling | Met a Zionite searching for Scraptown 1415 | -7/Recycling | Joined Warlord attack on 0b10 via Recycling 1551 | -7/Recycling | Discovered new exit (range 15) 1573 | -7/Recycling | Entered Factory 1573 | -5/Factory | Evolved 10 slots: Power x2, Propulsion x2, Utility x4, Weapon x2 1613 | -5/Factory | 4 allies followed out of Recycling 1687 | -5/Factory | Garrison activated, responded to threat 1867 | -5/Factory | Build established: Scavenger-Tank 1931 | -5/Factory | Core integrity fell below 50% 2021 | -5/Factory | Garrison activated, responded to threat 2180 | -5/Factory | System corruption reached 10% 2246 | -5/Factory | Lost 5 parts (1p2n1u1w) 2327 | -5/Factory | Core integrity fell below 20% 2333 | -5/Factory | Self-destructed Last Messages --------------- Overheating: Energy bleed (-60). K-01 Serf pushes P-70 Sage. Fusion Reactor destroyed. K-01 Serf pushes P-70 Sage. System corrupted: IFF burst signal emitted. R-10 Processor collects VTOL Module. K-01 Serf pushes P-70 Sage. Acquired 1 matter. Lgt. Assault Rifle destroyed. Med. Treads destroyed. P-70 Sage resets P-70 Sage, system corruption cleaned. Imp. Arc Projector destroyed. System corrupted: Matter fused (-6). Acquired 6 matter. Slammed into S-27 Virus. Destabilizing: System corrupted (+1). Slammed into S-27 Virus. Lrn. Tractor Beam destroyed. System corrupted: Heat flow error (+203). Map ----- +----------------------------------------------------+ | ?????????????????????????????????????????????????? | | ?????????????????????????????????????????????????? | | ?????????????????????????????????????????????????? | | ?????????????????????????????????????????????????? | | ?????????????????????????????????????????????????? | | ????????????????????????????????##???????????????? | | ??????????????????????????????? ????????????????? | | ??????????????????????????###? ????????????????? | | ??????????????????????????+ +? "?????????????????? | | ???????????#??????????????# # S??????????????????? | | ????????? #????????#+#####%# ???????????????????? | | ??????? ??????????# /! ??????????????????? | | ?????? ????????????# %%###??????????????????? | | #####+############### % #??????????????????? | | !!%% %% #??????????????????? | | !% % % %% % #??????????????????? | | =###########% #??????????????????? | | #??##?????#% #??????????????????? | | #### ###### #??????????????????? | | #####+######+##### #% #????????? ??????? | | #??? ??# # #????#?? "??????? | | """ "#??? # # #??? #? "??????? | | """ ""#??"" """ #! #% %###/## "??????? | | " ""#??"" """ #! l/ ""?????? | | ""#?""" """ # %bs#%% ????? | | """ ""#?? ???# %% %@# % ????? | | """ T"#??? ???# "" ""p# ###??????? | | " ""#??? ???# ""G""%+ #????????? | | ""#???###???###########+## #????????? | | """ ""#??????????### % # #????????? | | """ ""#?????# + # #????????? | | " "#???????###### ### ##### #????????? | | #????????????# ! #?? #?????#????????? | | ########????????????###########???#??????????????? | | ?????????????????????????????????????????????????? | | ?????????????????????????????????????????????????? | | ?????????????????????????????????????????????????? | | ?????????????????????????????????????????????????? | | ?????????????????????????????????????????????????? | | ?????????????????????????????????????????????????? | | ?????????????????????????????????????????????????? | | ?????????????????????????????????????????????????? | | ?????????????????????????????????????????????????? | | ?????????????????????????????????????????????????? | | ?????????????????????????????????????????????????? | | ?????????????????????????????????????????????????? | | ?????????????????????????????????????????????????? | | ?????????????????????????????????????????????????? | | ?????????????????????????????????????????????????? | | ?????????????????????????????????????????????????? | +----------------------------------------------------+ Best States ------------- Heat Dissipation 54 Energy Generation 42 Energy Capacity 530 Matter Stores 500 Matter Capacity 500 Sight Range 16 Terrain Scan Density 85 Armor Coverage 150 Resistance: KI 20 Resistance: TH 20 Resistance: EX 20 Resistance: EM 20 Resistance: I 20 Resistance: S 20 Resistance: P 20 Evasion (%) 55 Recoil Reduction 2 Offensive Hacking 10 Authchip Count 1 Item Schematics ----------------- None Robot Schematics ------------------ None Fabricated ------------ Nothing Repaired ---------- Nothing Studied --------- None Alien Tech Used ----------------- None Achievements -------------- None Challenges ------------ None Game ------ Seed InsulationHugeGriptreads Manual? 0 Play Time 00:29:56 Cumulative 4.6 hours Start 2026.01.03 @ 14:42:50 End 2026.01.03 @ 15:28:27 Sessions 1 Manual Loads 0 Difficulty Adventurer Special Mode None Game No. 4 Rogue 0 Adventurer 4 Explorer 0 Win Type - Total 0 Types 0/0/0/0/0/0/0/0/0/0 Lore% 2 Gallery% 7 Achievement% 7 Wizard Run 0 Options --------- Layout 1 ASCII 0 Keyboard 0 Movement Numpad Keybinds 0 Fullscreen 1 Font 32/SmallcapsGlow Map View 50x35 Zoom Use 0% Tactical HUD 0 Map Filters NONE Filters NONE Steam 1 RUN: ad65a197-0da1-40e9-8150-62f5cc66b01b